Cogmind - Beta 14 @@@ ROGUE MODE // 2024.10.15 @ 21:37:36 Player: Levos Result: Destroyed by G-47 Trooper with Particle Gun Performance ------------- Evolutions (1) 500 Regions Visited (3) 600 Robots Destroyed (32) 160 Value Destroyed (586) 586 Prototype IDs (0) 0 Alien Tech Used (0) 0 Bonus (0) 0 TOTAL SCORE: 1846 Bonus ------- None Cogmind --------- Core Integrity 0/400 Matter 172/300 Energy 99/100 System Corruption 0% Temperature Cool (15) Movement Core (100) Ox1 Location -9/Materials Parts ------- > --- POWER (1) -------- (None) > --- PROPULSION (2) --- (None) > --- UTILITY (4) ------ Small Storage Unit Targeting Computer > --- WEAPON (2) ------- (None) > --- INVENTORY (8) ---- (None) Peak State ------------ > --- POWER ------------ Light Ion Engine > --- PROPULSION ------- Light Treads Light Treads > --- UTILITY ---------- Small Storage Unit Targeting Computer Light Armor Plating Light Armor Plating > --- WEAPON ----------- Assault Rifle Rocket Launcher > --- INVENTORY -------- Aluminum Leg Aluminum Leg Seismic Detector Assault Rifle Light Assault Rifle [Rating: 10] Favorites ----------- Power Light Ion Engine Engine Light Ion Engine Propulsion Light Treads Treads Light Treads Leg Aluminum Leg Utility Targeting Computer Device Seismic Detector Storage Small Storage Unit Processor Targeting Computer Protection Light Armor Plating Weapon Assault Rifle Ballistic Gun Assault Rifle Launcher Grenade Launcher Build | -11 -10 -10 -9 ------- Run | Yrd Mat Min Mat Slots Evolved 2 | . . . 2 Power . | . . . . Propulsion . | . . . . Utility 2 | . . . 2 Weapon . | . . . . Parts Attached 23 | 6 5 2 10 Power 1 | 1 . . . Engine 1 | 1 . . . Core . | . . . . Reactor . | . . . . Propulsion 6 | 2 2 . 2 Treads 2 | . 2 . . Leg 4 | 2 . . 2 Wheel . | . . . . Hover . | . . . . Flight . | . . . . Utility 8 | 1 2 1 4 Device 2 | . . . 2 Storage 2 | 1 . 1 . Processor 1 | . 1 . . Hackware . | . . . . Protection 3 | . 1 . 2 Artifact . | . . . . Weapon 8 | 2 1 1 4 Energy Gun . | . . . . Energy Cannon . | . . . . Ballistic Gun 5 | 2 . . 3 Ballistic Cannon . | . . . . Launcher 3 | . 1 1 1 Special Weapon . | . . . . Impact Weapon . | . . . . Slashing Weapon . | . . . . Piercing Weapon . | . . . . Special Melee Weapon . | . . . . Unidentified Prototypes . | . . . . Parts Lost 15 | . . 1 14 Power 1 | . . . 1 Propulsion 4 | . . . 4 Utility 4 | . . . 4 Weapon 6 | . . 1 5 Highest Loss Streak 7 | . . 1 7 To Critical Strikes . | . . . . Average Slot Usage (%) 94 | . 99 100 74 Engine 12 | . 14 14 5 Treads 21 | . 22 28 9 Leg 2 | . 6 . 2 Device 1 | . . . 8 Storage 6 | . 2 6 11 Processor 13 | . 13 14 11 Protection 8 | . 11 7 8 Ballistic Gun 14 | . 16 14 13 Launcher 11 | . 11 14 5 Peak Build Rating 10 | 6 7 8 10 Average Rating 6 | 4 6 7 7 On Entrance 5 | . 6 7 8 Naked Turns . | . . . . Heaviest Build 20 | 12 13 14 20 Greatest Support 40 | 20 40 40 40 Greatest Overweight (x) 3 | . . . 3 Average Overweight (x) . | . . . . Largest Inventory Capacity 8 | 8 8 8 8 Average Capacity 6 | 7 5 6 8 Most Carried 8 | 5 5 8 6 Average Carried 4 | 2 4 6 2 Final Capacity 8 | 8 5 8 8 Final Carried 7 | 2 5 7 . Class Distribution -------------------- 100% | Mutant Dominant Class ---------------- Mutant | -10/Materials Mutant | -10/Mines Mutant | -9/Materials Resources | -11 -10 -10 -9 ----------- Run | Yrd Mat Min Mat Matter Collected 756 | 240 51 194 271 Remotely . | . . . . Salvage Created 483 | . 138 51 294 Parts 55 | . 18 12 25 Haulers Intercepted . | . . . . Recyclers Shooed 2 | . 1 . 1 Parts Field Recycled . | . . . . Retrieved Matter . | . . . . Parts Self-Destructed . | . . . . Prevented . | . . . . Kills | -11 -10 -10 -9 ------- Run | Yrd Mat Min Mat Combat Hostiles Destroyed 21 | . 5 6 10 Guns 3 | . . 1 2 AOE 18 | . 5 5 8 Classes Destroyed 8 | . 5 1 2 Worker 1 | . 1 . . Builder 1 | . . . 1 Tunneler 1 | . . 1 . Recycler 3 | . 1 . 2 Watcher 5 | . 3 . 2 Swarmer 12 | . 3 6 3 Grunt 8 | . 2 . 6 Duelist 1 | . . . 1 Best Kill Streak 13 | . 8 4 13 Combat Bots Only 8 | . 5 3 8 Max Kills in Single Turn 4 | . 3 3 4 Gunslinging . | . . . . Exploded 3 | . 2 3 3 Melee . | . . . . Uniques/NPCs Destroyed . | . . . . Combat | -11 -10 -10 -9 -------- Run | Yrd Mat Min Mat Hostile Shots Fired 161 | . 11 13 137 Missed 49 | . 3 4 42 Damage Taken 1761 | . 141 97 1523 Core 448 | . 28 9 411 Absorbed by Shields . | . . . . Core Remaining (%) 92 | 100 . 85 . Volleys Fired 60 | . 11 16 33 Largest 2 | . 2 2 2 Hottest 53 | . 50 50 53 Shots Fired 89 | . 22 20 47 Gun 51 | . 11 6 34 Cannon . | . . . . Launcher 38 | . 11 14 13 Special . | . . . . Kinetic 51 | . 11 6 34 Thermal . | . . . . Explosive 38 | . 11 14 13 Electromagnetic . | . . . . Robot Hit Streak 10 | . 6 5 10 Robot Miss Streak 3 | . 1 . 3 Penetration Max . | . . . . Secondary Targets . | . . . . Shots Hit Robots 40 | . 10 2 28 Core Hits 53 | . 18 8 27 Critical Kills . | . . . . Critical Parts Destroyed . | . . . . Critical Strikes . | . . . . Melee Attacks . | . . . . Impact . | . . . . Slashing . | . . . . Piercing . | . . . . Sneak Attacks . | . . . . Combat Hostiles . | . . . . Follow-up Attacks . | . . . . Damage Inflicted 2053 | . 532 364 1157 Guns 345 | . 68 24 253 Cannons . | . . . . Explosions 1700 | . 464 332 904 Melee . | . . . . Ramming 8 | . . 8 . Kinetic 345 | . 68 24 253 Thermal . | . . . . Explosive 1700 | . 464 332 904 Electromagnetic . | . . . . Impact . | . . . . Slashing . | . . . . Piercing . | . . . . Highest Corruption . | . . . . Average Corruption . | . . . . Corruption Purged . | . . . . Corruption Blocked . | . . . . Overload Shots . | . . . . Overflow Damage 38 | . . 11 27 Projectiles . | . . . . Explosions 38 | . . 11 27 Melee . | . . . . Knockbacks . | . . . . Impact . | . . . . Kinetic . | . . . . Secondary . | . . . . Self-Inflicted Damage 265 | . 45 24 196 Shots 8 | . 2 1 5 Rammed 1 | . . 1 . Targets Rammed 1 | . . 1 . Kicked . | . . . . Crushed . | . . . . Highest Temperature 34 | . 34 . 25 Average Temperature 16 | . 25 . 11 Received Heat Transfer 576 | . 48 . 528 Siege Activations . | . . . . Robots Corrupted . | . . . . Combat Hostiles . | . . . . Parts Fried . | . . . . Impact Corruptions . | . . . . Robots Melted . | . . . . Combat Hostiles . | . . . . Parts Melted . | . . . . Heat Transferred . | . . . . Parts Sabotaged . | . . . . Parts Stolen . | . . . . Parts Stripped . | . . . . Power Chain Reactions . | . . . . Alert | -11 -10 -10 -9 ------- Run | Yrd Mat Min Mat Peak Influence 273 | . 219 209 273 Initial 7 | . . 7 5 Average 112 | . 104 105 172 Maximum Alert Level 1 | . 1 1 1 Low Security (%) 63 | 100 57 78 31 Level 1 36 | . 42 21 68 Level 2 . | . . . . Level 3 . | . . . . Level 4 . | . . . . Level 5 . | . . . . High Security . | . . . . Max Security . | . . . . Squads Dispatched 2 | . . . 2 Investigation . | . . . . Extermination . | . . . . Reinforcement 2 | . . . 2 Assault . | . . . . Garrison . | . . . . Intercept . | . . . . Searches Triggered . | . . . . Construction Impeded . | . . . . Haulers Reinforced . | . . . . Active Scanning Responses . | . . . . Cargo Convoy Interrupts . | . . . . Stealth | -11 -10 -10 -9 --------- Run | Yrd Mat Min Mat Distress Signals 2 | . 1 . 1 Communications Jammed . | . . . . Distress Signals . | . . . . Times Spotted 36 | . 8 6 22 Peak Tracking Total 9 | . 4 3 9 Tactical Retreats . | . . . . Traps | -11 -10 -10 -9 ------- Run | Yrd Mat Min Mat Traps Triggered . | . . . . Indirectly . | . . . . Trap Hack Attempts . | . . . . Triggered . | . . . . Disarmed . | . . . . Reprogrammed . | . . . . Reused . | . . . . Traps Extracted . | . . . . Installed . | . . . . Triggered . | . . . . Machines | -11 -10 -10 -9 ---------- Run | Yrd Mat Min Mat Machines Disabled 1 | . . 1 . Max in Single Turn 1 | . . 1 . Machines Repaired . | . . . . Machines Dismantled . | . . . . Machines Sabotaged . | . . . . Overloaded Fab Kills . | . . . . Hacking | -11 -10 -10 -9 --------- Run | Yrd Mat Min Mat Machines Accessed 2 | . 2 . . Terminals 2 | . 2 . . Fabricators . | . . . . Repair Stations . | . . . . Recycling Units . | . . . . Scanalyzers . | . . . . Garrison Access . | . . . . Total Hacks 4 | . 4 . . Successful 1 | . 1 . . Failed 3 | . 3 . . Catastrophic . | . . . . Database Lockouts . | . . . . Manual . | . . . . Terminals 4 | . 4 . . Fabricators . | . . . . Repair Stations . | . . . . Recycling Units . | . . . . Scanalyzers . | . . . . Garrison Access . | . . . . Terminal Hacks 1 | . 1 . . Record 1 | . 1 . . Fabricator Hacks . | . . . . Repair Station Hacks . | . . . . Recycling Unit Hacks . | . . . . Scanalyzer . | . . . . Garrison Access Hacks . | . . . . Unauthorized Hacks . | . . . . Terminals . | . . . . Fabricators . | . . . . Repair Stations . | . . . . Recycling Units . | . . . . Scanalyzers . | . . . . Garrison Access . | . . . . Data Cores Recovered . | . . . . Used . | . . . . Hacking Detections 1 | . 1 . . Full Trace Events . | . . . . Feedback Events . | . . . . Feedback Blocked . | . . . . Robot Schematics Acquired . | . . . . Robots Built . | . . . . Authchips . | . . . . Time . | . . . . Total Robot Build Rating . | . . . . Part Schematics Acquired . | . . . . Parts Built . | . . . . Authchips . | . . . . Time . | . . . . Total Part Build Rating . | . . . . Parts Repaired . | . . . . Time . | . . . . Parts Recycled . | . . . . Recycled Matter . | . . . . Retrieved Matter . | . . . . Retrieved Components . | . . . . Parts Scanalyzed . | . . . . Part Schematics Acquired . | . . . . Parts Damaged . | . . . . Bothacking | -11 -10 -10 -9 ------------ Run | Yrd Mat Min Mat Used RIF Installer . | . . . . Robots Hacked . | . . . . Non-combat . | . . . . Combat . | . . . . Robot Hacks Applied . | . . . . Relay Couplers Released . | . . . . Fabnet Peak Effective % . | . . . . Robots Rewired . | . . . . Allies Hacked . | . . . . Hacks Repelled . | . . . . Allies | -11 -10 -10 -9 -------- Run | Yrd Mat Min Mat Total Allies . | . . . . Largest Group . | . . . . Highest-Rated Group . | . . . . Highest-Rated Ally . | . . . . Total Orders . | . . . . Ally Attacks . | . . . . Total Damage . | . . . . Kills . | . . . . Allies Corrupted . | . . . . Allies Melted . | . . . . Intel | -11 -10 -10 -9 ------- Run | Yrd Mat Min Mat Robot Analysis Total . | . . . . Derelict Logs Recovered 1 | . . 1 . Drone Launches . | . . . . Drone Recoveries . | . . . . Exploration | -11 -10 -10 -9 ------------- Run | Yrd Mat Min Mat Turns Passed 1250 | 78 411 501 260 Spaces Moved 666 | 57 228 287 94 Core 38 | 8 . . 30 Treads 501 | . 166 287 48 Legs 127 | 49 62 . 16 Wheels . | . . . . Hover . | . . . . Flight . | . . . . Fastest Speed 50 | 50 120 160 100 Average Speed 150 | 110 149 160 146 Slowest Speed 200 | 120 160 160 200 Overloaded Moves . | . . . . Propulsion Burnouts . | . . . . Robots Hopped . | . . . . Cave-ins Triggered . | . . . . Exploration Rate (%) 31 | 4 40 66 17 Regions Visited 3 Branch Regions 1 Pre-discovered Areas 1 | . . 1 . Known Exits Taken . | . . . . Unknown Exits Taken 3 | 1 1 1 . Scrap Searched 1 | . . 1 . Spaces Dug 7 | . 7 . . Terrain Destroyed 256 | . 70 106 80 Melee . | . . . . Projectile . | . . . . AOE 256 | . 70 106 80 Terrain Rammed . | . . . . Walls Destroyed . | . . . . Machines Disabled . | . . . . Actions | -11 -10 -10 -9 --------- Run | Yrd Mat Min Mat Total 826 | 72 275 308 171 Wait 62 | 2 28 . 32 Move 663 | 56 227 286 94 Hop . | . . . . Pick Up 17 | 8 4 3 2 Fast Attach . | . . . . Attach 17 | 6 1 1 9 Detach . | . . . . Swap 6 | . 4 1 1 Drop . | . . . . Fire 60 | . 11 16 33 Melee . | . . . . Ram . | . . . . Kick . | . . . . Crush 1 | . . 1 . Escape Stasis . | . . . . Rewire . | . . . . Trap . | . . . . Miscellaneous . | . . . . Route ------- -11/Scrapyard -10/Materials -10/Mines -9/Materials History --------- Turn | Location | Event 35 | -11/Scrapyard | Discovered new exit (range 15) 79 | -11/Scrapyard | Entered Materials 316 | -10/Materials | Build established: Mutant 397 | -10/Materials | Discovered new exit (range 16) 490 | -10/Materials | Entered Mines 832 | -10/Mines | Learned location of Storage (-8) 839 | -10/Mines | Received a Rocket Launcher from a helpful Derelict 959 | -10/Mines | Discovered new exit (range 12) 991 | -10/Mines | Entered Materials 991 | -9/Materials | Evolved 2 slots: Utility x2 1103 | -9/Materials | Destroyed 8 combat bots 1149 | -9/Materials | Lost 7 parts (1p2n2u2w) 1198 | -9/Materials | Lost 3 parts (2n1w) 1234 | -9/Materials | Core integrity fell below 50% 1246 | -9/Materials | Core integrity fell below 20% 1251 | -9/Materials | Destroyed by G-47 Trooper with Particle Gun Last Messages --------------- The unstable cave ceiling collapses. K-01 Serf collects debris. The unstable cave ceiling collapses. U-05 Engineer lays Concrete. Lgt. Assault Rifle destroyed. U-05 Engineer builds a Wall. K-01 Serf collects debris. U-05 Engineer lays Concrete. ALERT: Hostiles spotted, dispatching reinforcements to Terminal M012. U-05 Engineer lays Concrete. U-05 Engineer builds a Wall. U-05 Engineer lays Concrete. U-05 Engineer builds a Door. U-05 Engineer lays Concrete. Assault Rifle destroyed. U-05 Engineer lays Concrete. M-13 Machinist repairs G-47 Trooper. Seismic Detector destroyed. Heat Sink destroyed. Map ----- +----------------------------------------------------+ | ??????????????# ######?????????????? | | ??????????????# # ##?????????????????? | | ??????????????# #?????????????????? | | ??????????????# #?????????????????? | | ??????????????# ######????????????? | | ??????????????## # ???????????? | | ???????????????#### ???????????? | | ?????????????????## = = ???????????? | | ?????????????????## ^ #####+####????????????? | | ??????????????????# # #????????????? | | ??????????????????# # #????????????? | | ???????????######## # #????????????? | | ???????????# # # #????????????? | | ???????????# # # #????????????? | | ??????????## "# # ?????????????? | | ??????????## T# gg r#?? ??????????????? | | ??????????# # "# #??? ???????????????? | | ??????????# + #?????????????????????? | | ??????????## # o #?????????????????????? | | ???????????### # #?????????????????????? | | ?????????????# # #?????????????????????? | | ?????????????# # #?????????????????????? | | ?????????????###### #?????????????????????? | | ??????????????????# Yg #?????????????????????? | | ??????????????????###+## #?????????????????????? | | ???????????????????! # @ #?????????????????????? | | ?????????????????? # #?????????????????????? | | ????????????????? """ # #?????????????????????? | | ????????????????# "T =# ?????????????????????? | | ????????????????# """ # ????????????????????? | | ????????????????# ? # ???????????????????? | | ???????????????????### # ??????????????????? | | ??????????????????????## ??????????????????? | | ???????????????????????# a ?????????????????? | | ???????????????????????###+## "????????????????? | | ????????????????????????????? "????????????????? | | ????????????????????????????? ???????????????? | | ?????????????????????????????? ???????????????? | | ?????????????????????????????? ????????????????? | | ?????????????????????????????????????????????????? | | ?????????????????????????????????????????????????? | | ?????????????????????????????????????????????????? | | ?????????????????????????????????????????????????? | | ?????????????????????????????????????????????????? | | ?????????????????????????????????????????????????? | | ?????????????????????????????????????????????????? | | ?????????????????????????????????????????????????? | | ?????????????????????????????????????????????????? | | ?????????????????????????????????????????????????? | | ?????????????????????????????????????????????????? | +----------------------------------------------------+ Best States ------------- Heat Dissipation 38 Energy Generation 10 Energy Capacity 125 Matter Stores 300 Matter Capacity 300 Sight Range 16 Terrain Scan Density 10 Armor Coverage 300 Evasion (%) 55 Targeting Accuracy 5 Recoil Reduction 2 Item Schematics ----------------- None Robot Schematics ------------------ None Fabricated ------------ Nothing Alien Tech Used ----------------- None Achievements -------------- Remodeling Challenges ------------ None Game ------ Seed ArchitectWeldingJammer Manual? 0 Play Time 00:18:00 Cumulative 4.2 hours Start 2024.10.15 @ 21:20:00 End 2024.10.15 @ 21:37:36 Sessions 1 Manual Loads 0 Difficulty Rogue Special Mode None Game No. 8 Rogue 8 Adventurer 0 Explorer 0 Win Type - Total 0 Types 0/0/0/0/0/0/0/0/0 Lore% 1 Gallery% 6 Achievement% 6 Wizard Run 0 Options --------- Layout 1 ASCII 0 Keyboard 0 Movement Mouse Keybinds 0 Fullscreen 1 Font 24/Smallcaps Map View 50x35 Zoom Use 0% Tactical HUD 0 Map Filters NONE Filters NONE Steam 0 RUN: 1e8d65c6-bfad-4aa4-a47e-118faee2744d